bitfinex/quotes_ETHUSD_20250523
["timestamp","ask_amount","ask_price","bid_price","bid_amount"]
[1748039180942,3.91926317,2551.5,2551.4,31.439]
[1748039181304,3.91922505,2551.6,2551.4,43.188]
[1748039181580,3.91907126,2551.7,2551.4,43.188]
[1748039181795,3.91892921,2551.8,2551.5,0.516]
[1748039181992,3.918961,2551.7,2551.5,0.516]
[1748039182198,3.91910957,2551.6,2551.5,0.516]
[1748039184210,3.91926317,2551.5,2551.4,14.101]
[1748039184407,4.70307148,2551.5,2551.4,31.438]
[1748039184569,3.91926317,2551.5,2551.4,31.438]
[1748039185393,3.91926317,2551.5,2551.4,31.954]
[1748039185592,3.91926317,2551.5,2551.4,31.438]
[1748039186366,4.67486317,2551.5,2551.4,31.436]
[1748039190220,3.91926317,2551.5,2551.4,31.436]
[1748039190408,3.91926317,2551.5,2551.4,46.8426]
[1748039191210,3.91910254,2551.7,2551.4,46.8426]
[1748039191391,3.9191147,2551.6,2551.4,46.8426]
[1748039191776,3.9190409,2551.7,2551.5,0.516]
[1748039192012,3.9190409,2551.7,2551.6,1.11946188]
[1748039193914,3.96873775,2551.9,2551.6,1.11946188]
[1748039194784,3.96873775,2551.9,2551.7,0.03918477]
[1748039195112,3.96873775,2551.9,2551.8,11.746]
[1748039196328,0.05,2551.9,2551.8,11.746]
[1748039196514,0.05,2551.9,2551.8,20.97999736]
[1748039196715,0.05,2551.9,2551.8,21.54854619]
[1748039197043,3.96864884,2551.9,2551.8,30.88054619]
[1748039198109,3.96864884,2551.9,2551.8,31.24977752]
[1748039198938,3.96864884,2551.9,2551.8,2.17177752]
[1748039199101,3.96864884,2551.9,2551.8,17.70223133]
[1748039199305,3.96864884,2551.9,2551.8,29.44723133]
[1748039199897,0.05,2551.9,2551.8,29.44723133]
[1748039200789,3.96864884,2551.9,2551.8,29.44723133]
[1748039201286,0.05,2551.9,2551.8,37.44723133]
[1748039201517,0.05,2551.9,2551.8,41.10683133]
[1748039204335,3.96864884,2551.9,2551.8,17.70023133]
[1748039205165,3.96864884,2551.9,2551.8,17.331]
[1748039205593,0.05,2551.9,2551.8,17.331]
[1748039205762,3.96864884,2551.9,2551.8,17.331]
[1748039205927,3.96864884,2551.9,2551.8,28.981]
[1748039206145,3.96864884,2551.9,2551.8,31.8791]
[1748039208148,3.96864884,2551.9,2551.8,32.24896947]
[1748039209575,3.96864884,2551.9,2551.8,17.60686947]
[1748039209775,3.96864884,2551.9,2551.8,17.237]
[1748039210650,3.96864884,2551.9,2551.5,0.516]
[1748039210651,3.91903912,2551.7,2551.5,8.516]
[1748039210846,3.91903912,2551.7,2551.6,28.981]
[1748039211091,3.91903912,2551.7,2551.6,29.35089008]
[1748039216906,3.91903912,2551.7,2551.6,0.36989008]
[1748039217111,4.67673912,2551.7,2551.6,17.60689008]
[1748039217895,4.67673912,2551.7,2551.6,17.237]
[1748039219817,3.91926317,2551.5,2551.4,14.101]
[1748039219995,5.17077703,2551.5,2551.4,31.338]
[1748039220191,5.92847703,2551.5,2551.4,14.101]
[1748039220396,5.92847703,2551.5,2551.4,31.338]
[1748039220797,5.92847703,2551.5,2551.4,14.101]
[1748039220981,4.67696317,2551.5,2551.4,31.339]
[1748039221206,3.91926317,2551.5,2551.4,31.339]
[1748039222522,3.91926317,2551.5,2551.4,43.084]
[1748039223034,0.05,2551.9,2551.4,44.77060673]
[1748039223220,3.91926317,2551.5,2551.4,44.77060673]
[1748039223423,3.91926317,2551.5,2551.4,43.084]
[1748039223808,3.91926317,2551.5,2551.4,43.45409468]
[1748039225039,0.05,2551.9,2551.4,45.14070141]
[1748039225210,3.91893486,2551.8,2551.4,45.14070141]
[1748039225544,3.96878136,2551.9,2551.4,45.14070141]
[1748039225545,0.05,2551.9,2551.6,1.68660673]
[1748039225846,3.91880241,2551.8,2551.7,1.53366851]
[1748039226197,3.91880241,2551.8,2551.7,17.237]
[1748039227044,3.91910957,2551.6,2551.5,12.11409468]
[1748039227225,3.91910957,2551.6,2551.5,0.37009468]
[1748039227541,4.67680957,2551.6,2551.5,0.37009468]
[1748039227696,5.92826866,2551.6,2551.5,17.60709468]
[1748039227898,5.92826866,2551.6,2551.5,17.237]
[1748039229429,3.91910957,2551.6,2551.5,17.237]
[1748039232104,0.05,2551.9,2551.5,17.237]
[1748039232445,3.91910957,2551.6,2551.5,17.237]
[1748039233231,3.91902985,2551.7,2551.5,17.237]
[1748039233415,3.91902985,2551.7,2551.6,3.1338]
[1748039234035,3.91881192,2551.8,2551.6,3.5039493]
[1748039234238,0.05,2551.9,2551.6,3.5039493]
[1748039234548,3.91890885,2551.8,2551.6,3.5039493]
[1748039234722,3.91895599,2551.7,2551.6,3.5039493]
[1748039236747,3.91895599,2551.7,2551.6,0.3701493]
[1748039237253,3.91895599,2551.7,2551.6,17.5101493]
[1748039237439,3.91895599,2551.7,2551.6,0.3701493]
[1748039237608,4.70725599,2551.7,2551.6,17.5101493]
[1748039239016,4.70725599,2551.7,2551.6,17.14]
[1748039240215,5.74352296,2551.7,2551.6,17.14]
[1748039241753,13.74352296,2551.7,2551.6,17.14]
[1748039243551,3.91926317,2551.5,2551.4,14.101]
[1748039243769,3.91926317,2551.5,2551.4,31.243]
[1748039243978,17.39556222,2551.5,2551.4,31.243]
[1748039245322,17.39556222,2551.5,2551.4,14.101]
[1748039245835,11.91957041,2551.3,2551.2,17.142]
[1748039250376,3.91957041,2551.3,2551.2,17.142]
[1748039254434,3.91957041,2551.3,2550.6,14.612]
[1748039254637,3.92049241,2550.7,2550.6,14.096]
[1748039254879,3.92049241,2550.7,2550.6,31.239]
[1748039260272,11.92049241,2550.7,2550.6,14.096]
[1748039260471,12.68699241,2550.7,2550.6,14.096]
[1748039260709,12.68699241,2550.7,2550.6,31.241]
[1748039260900,15.69118899,2550.7,2550.6,31.241]
[1748039262316,17.37779572,2550.7,2550.6,31.241]
[1748039264232,3.92187622,2549.8,2549.7,0.516]
[1748039264428,3.92187622,2549.8,2549.7,31.246]
[1748039265719,3.92187622,2549.8,2549.7,31.762]
[1748039266927,3.92187622,2549.8,2549.7,42.997]
[1748039267575,3.92187622,2549.8,2549.7,31.246]
[1748039271092,3.92187622,2549.8,2549.7,31.762]
[1748039274519,3.92179806,2549.9,2549.7,31.762]
[1748039275085,3.92187622,2549.8,2549.7,31.762]
[1748039280481,4.69601316,2550.5,2549.7,31.762]
[1748039280482,3.92158033,2550.0,2549.7,31.762]
[1748039280779,3.92158033,2550.0,2549.8,1.68660673]
[1748039280977,3.92158033,2550.0,2549.9,11.752]
[1748039281778,8.0,2550.6,2549.9,11.752]
[1748039281779,0.7988,2550.7,2550.0,0.516]
[1748039282088,0.7988,2550.7,2549.9,11.752]
[1748039282089,3.92156862,2550.0,2549.9,11.752]
[1748039287526,3.92172242,2549.9,2549.7,31.246]
[1748039287729,3.92165377,2550.0,2549.8,17.061]
[1748039287913,3.92165377,2550.0,2549.8,28.813]
[1748039288427,0.7531,2550.9,2549.9,8.5552147]
[1748039288756,4.67334937,2550.9,2550.1,0.516]
[1748039288930,0.7531,2550.9,2550.2,11.752]
[1748039289075,3.920038,2551.0,2550.3,18.2878]
[1748039289275,0.7531,2551.1,2550.4,8.55520303]
[1748039289581,3.92057604,2550.7,2550.5,1.68660673]
[1748039290227,4.67281265,2551.3,2550.5,1.68660673]
[1748039290438,3.92050116,2550.7,2550.5,1.68660673]
[1748039290735,3.92050116,2550.7,2550.6,1.02026067]
[1748039290939,3.92050116,2550.7,2550.6,1.39076677]
[1748039291227,3.92050116,2550.7,2550.6,0.3705061]
[1748039293317,3.92079984,2550.5,2550.4,11.751]
[1748039294116,3.92079984,2550.5,2550.4,25.852]
[1748039294893,3.92079984,2550.5,2550.4,14.101]
[1748039296401,4.71169984,2550.5,2550.4,14.101]
[1748039296606,5.57493694,2550.5,2550.4,14.101]
[1748039297723,5.57493694,2550.5,2550.4,31.069]
[1748039298222,0.7909,2549.6,2549.3,0.61608694]
[1748039298374,6.39999829,2549.4,2549.3,0.61608694]
[1748039298577,8.99945028,2549.4,2549.3,0.61608694]
[1748039298826,16.99945028,2549.4,2549.3,0.61608694]
[1748039299192,7.31284355,2549.4,2549.3,0.61608694]
[1748039299407,4.71339156,2549.4,2549.3,0.61608694]
[1748039300230,3.9227993,2549.2,2549.0,16.969]
[1748039303459,3.9227993,2549.2,2548.9,14.101]
[1748039303755,3.9227993,2549.2,2549.1,17.022]
[1748039306559,4.7281993,2549.2,2549.1,17.022]
[1748039306768,4.7281993,2549.2,2549.1,0.05]
[1748039306965,6.93734631,2549.2,2549.1,0.05]
[1748039313665,14.93734631,2549.2,2549.1,0.05]
[1748039315684,15.83734631,2549.2,2549.1,0.05]
[1748039316485,29.28095304,2549.2,2549.1,0.05]
[1748039317982,29.83095304,2549.2,2549.1,0.05]
[1748039318186,3.92433874,2548.2,2548.1,0.05]
[1748039318404,11.92433874,2548.2,2548.1,0.05]
[1748039318565,13.76026458,2548.2,2548.1,0.05]
[1748039319542,25.51826458,2548.2,2548.1,0.05]
[1748039319738,13.76026458,2548.2,2548.1,0.05]
[1748039320253,14.58436458,2548.2,2548.1,0.05]
[1748039320583,15.48436458,2548.2,2548.1,0.05]
[1748039321753,16.03436458,2548.2,2548.1,0.05]
[1748039324259,27.79536458,2548.2,2548.1,0.05]
[1748039328095,29.48197131,2548.2,2548.1,0.05]
[1748039329905,3.92587939,2547.2,2547.1,14.159]
[1748039330105,5.61248612,2547.2,2547.1,31.066]
[1748039331473,3.92587939,2547.2,2547.1,31.582]
[1748039337442,3.92587939,2547.2,2547.1,14.159]
[1748039337596,4.78724261,2547.2,2547.1,31.07]
[1748039338226,3.92587939,2547.2,2547.1,31.07]
[1748039341497,3.92587939,2547.2,2547.1,31.586]
[1748039342205,3.92587939,2547.2,2547.1,14.675]
[1748039342508,3.92587939,2547.2,2547.1,31.586]
[1748039347646,3.92587939,2547.2,2547.1,31.07]
[1748039349324,0.7713,2547.9,2547.2,0.516]
[1748039349515,3.92572527,2547.3,2547.2,0.516]
[1748039350710,3.92572527,2547.3,2547.2,0.88800528]
[1748039353370,3.92572527,2547.3,2547.2,12.65300528]
[1748039353771,3.92572527,2547.3,2547.2,17.28300528]
[1748039354357,4.87951716,2547.3,2547.2,17.28300528]
[1748039354551,4.87951716,2547.3,2547.2,16.911]
[1748039354742,3.92587939,2547.2,2547.1,14.159]
[1748039354938,3.92587939,2547.2,2547.1,31.07]
[1748039355380,5.19897774,2547.2,2547.1,31.07]
[1748039355578,5.19897774,2547.2,2547.1,14.159]
[1748039355881,5.19897774,2547.2,2547.1,31.07]
[1748039357784,5.19897774,2547.2,2547.1,14.159]
[1748039357785,5.95857774,2547.2,2547.1,14.159]
[1748039362567,5.95857774,2547.2,2547.1,0.05]
[1748039364126,14.50857774,2547.2,2547.1,0.05]
[1748039366029,27.96218447,2547.2,2547.1,0.05]
[1748039367527,16.19518447,2547.2,2547.1,0.05]
[1748039367695,13.95857774,2547.2,2547.1,0.05]
[1748039367913,5.95857774,2547.2,2547.1,0.05]
[1748039368211,17.72657774,2547.2,2547.1,0.05]
[1748039369646,5.19897774,2547.2,2547.1,0.05]
[1748039369849,3.92587939,2547.2,2547.1,0.05]
[1748039373230,3.92587939,2547.2,2547.1,0.566]
[1748039374517,3.92587939,2547.2,2547.1,0.05]
[1748039375055,3.92587939,2547.2,2547.1,16.884]
[1748039376550,3.92587939,2547.2,2547.1,17.4]
[1748039376928,3.92587939,2547.2,2547.1,16.884]
[1748039377141,5.03828287,2547.2,2547.1,16.884]
[1748039380084,3.92587939,2547.2,2547.1,16.884]
[1748039381274,0.7605,2548.1,2547.2,0.516]
[1748039381598,3.92572527,2547.3,2547.2,0.516]
[1748039381949,3.92572527,2547.3,2547.2,29.117]
[1748039383003,3.92572527,2547.3,2547.2,28.601]
[1748039383153,3.92557117,2547.4,2547.3,0.516]
[1748039391999,3.92510621,2547.8,2547.4,0.516]
[1748039392202,3.92512882,2547.7,2547.4,2.20260673]
[1748039392365,3.92503275,2547.8,2547.5,1.53626067]
[1748039392696,3.92504519,2547.8,2547.6,0.516]
[1748039393002,3.92504519,2547.8,2547.7,28.516]
[1748039398100,3.92504519,2547.8,2547.7,16.751]
[1748039398509,3.92521173,2547.7,2547.4,0.516]
[1748039398806,3.92526299,2547.6,2547.5,16.749]
[1748039399367,3.92504519,2547.8,2547.1,0.05]
[1748039399368,3.92572527,2547.3,2547.1,0.05]
[1748039399673,3.92587939,2547.2,2547.1,0.05]
[1748039399992,3.92587939,2547.2,2547.1,16.799]
[1748039400469,5.18387976,2547.2,2547.1,0.05]
[1748039403984,3.92587939,2547.2,2547.1,0.05]
[1748039408828,3.92587939,2547.2,2547.1,0.566]
[1748039408970,3.92587939,2547.2,2547.1,0.05]
[1748039411222,3.92587939,2547.2,2547.1,0.566]
[1748039413215,3.92587939,2547.2,2547.1,0.05]
[1748039414082,5.48544249,2547.2,2547.1,0.05]
[1748039414305,5.48544249,2547.2,2547.1,16.802]
[1748039419719,13.48544249,2547.2,2547.1,16.802]
[1748039426030,13.48544249,2547.2,2547.1,0.05]
[1748039426232,14.02784249,2547.2,2547.1,0.05]
[1748039428514,14.02784249,2547.2,2546.7,16.682]
[1748039428515,3.92788404,2545.9,2545.8,0.41187739]
[1748039428734,3.92788404,2545.9,2545.8,17.09487739]
[1748039429505,3.92788404,2545.9,2545.8,20.15057768]
[1748039432371,3.92712729,2546.4,2545.8,21.43282578]
[1748039432533,4.71110915,2547.2,2546.2,1.69412549]
[1748039432858,4.71110915,2547.2,2546.4,0.4118]
[1748039432859,3.92705642,2546.5,2546.4,0.4118]
[1748039434113,3.92616551,2547.1,2546.4,0.4118]
[1748039434327,3.92679244,2546.7,2546.6,1.69412549]
[1748039434523,3.92679244,2546.7,2546.6,2.10592549]
[1748039434774,3.92679244,2546.7,2546.6,0.4118]
[1748039436337,3.92679244,2546.7,2546.6,14.5348]
[1748039436537,3.92679244,2546.7,2546.6,31.2188]
[1748039437068,3.92679244,2546.7,2546.6,34.27450029]
[1748039440072,3.88242596,2546.7,2546.6,34.27450029]
[1748039447179,3.88242596,2546.7,2546.6,42.9868]
[1748039450003,3.88242596,2546.7,2546.6,42.575]
[1748039450167,3.88242596,2546.7,2546.6,30.731]
[1748039451511,4.63692596,2546.7,2546.6,30.731]
[1748039452885,16.40492596,2546.7,2546.6,30.731]
[1748039453207,18.60748173,2546.7,2546.6,30.731]
[1748039454713,6.83948173,2546.7,2546.6,30.731]
[1748039454873,16.40592596,2546.7,2546.6,30.731]
[1748039457115,16.40362596,2546.7,2546.6,30.731]
[1748039460495,18.64775145,2546.7,2546.6,16.608]
[1748039460818,26.64775145,2546.7,2546.6,16.608]
[1748039460992,29.70517722,2546.7,2546.6,16.608]
[1748039461576,3.92788404,2545.9,2545.8,14.124]
[1748039461777,3.92788404,2545.9,2545.8,30.735]
[1748039464226,4.73048404,2545.9,2545.8,14.124]
[1748039464529,6.77340834,2545.9,2545.8,30.737]
[1748039464980,4.73048404,2545.9,2545.8,30.737]
[1748039466340,3.92788404,2545.9,2545.8,30.737]
[1748039470390,3.92788404,2545.9,2545.8,31.1488]
[1748039471821,3.92788404,2545.9,2545.8,44.61492549]
[1748039477932,3.92775895,2546.0,2545.8,44.20312549]
[1748039478157,3.92735303,2546.3,2546.0,0.4118]
[1748039478315,4.68162527,2547.3,2545.9,8.0]
[1748039478316,3.92743311,2546.2,2546.1,12.1838]
[1748039478523,3.92743311,2546.2,2546.1,13.87792549]
[1748039478727,3.92734494,2546.3,2546.1,13.87792549]
[1748039479021,3.92734494,2546.3,2546.2,1.38779255]
[1748039479889,3.9272134,2546.4,2546.3,0.4118]
[1748039480091,3.9272134,2546.4,2546.3,26.64292549]
[1748039480325,3.9272134,2546.4,2546.3,24.9488]
[1748039480541,3.92742125,2546.2,2546.1,0.37290156]
[1748039480699,3.92742125,2546.2,2546.1,37.09270156]
[1748039480906,3.92742125,2546.2,2546.1,28.7198]
[1748039482821,3.92742125,2546.2,2546.1,16.537]
[1748039483156,3.92742125,2546.2,2546.1,28.308]
[1748039485425,3.92772977,2546.0,2545.9,0.4118]
[1748039485625,3.92772977,2546.0,2545.9,30.33979255]
[1748039486173,3.92772977,2546.0,2545.9,32.03391804]
[1748039486389,3.92710355,2546.5,2545.9,32.03391804]
[1748039486524,3.92710355,2546.5,2546.3,1.69412549]
[1748039486525,3.92704357,2546.5,2546.3,1.69412549]
[1748039486866,3.92704357,2546.5,2546.4,28.7168]
[1748039487162,3.92704357,2546.5,2546.4,31.35686933]
[1748039488373,3.92676599,2546.7,2546.4,31.35686933]
[1748039488669,3.92680666,2546.6,2546.5,1.69412549]
[1748039491278,3.92680666,2546.6,2546.5,2.10592549]
[1748039493341,3.92665017,2546.7,2546.6,0.4118]
[1748039493674,3.92665017,2546.7,2546.6,10.03479255]
[1748039493879,3.92665017,2546.7,2546.6,28.7128]
[1748039494178,3.92665017,2546.7,2546.6,16.533]
[1748039494486,3.92665017,2546.7,2546.6,28.301]
[1748039494978,3.92695857,2546.5,2546.4,0.4118]
[1748039495178,3.92695857,2546.5,2546.4,28.7128]
[1748039495382,3.92495486,2547.8,2546.5,0.55]
[1748039495541,4.75225786,2548.0,2547.2,0.4118]
[1748039495542,3.92585379,2547.3,2547.2,0.4118]
[1748039495745,3.92585379,2547.3,2547.2,42.8348]
[1748039497184,3.92585379,2547.3,2547.2,42.423]
[1748039498197,3.92569639,2547.4,2547.2,44.11712549]
[1748039498362,0.8591,2547.9,2547.2,44.11712549]
[1748039498363,3.92572527,2547.3,2547.2,44.11712549]
[1748039499504,3.92572527,2547.3,2547.2,42.423]
[1748039500289,3.92572527,2547.3,2547.2,14.122]
[1748039500594,4.73482527,2547.3,2547.2,30.652]
[1748039500893,5.60086548,2547.3,2547.2,30.652]
[1748039503166,5.60086548,2547.3,2547.2,14.122]
[1748039503485,5.60086548,2547.3,2547.2,30.652]
[1748039506403,7.29499097,2547.3,2547.2,14.122]
[1748039506571,3.92772977,2546.0,2545.9,0.46563932]
[1748039506770,3.92772977,2546.0,2545.9,42.88363932]
[1748039507797,3.92772977,2546.0,2545.9,30.651]
[1748039507971,3.92772977,2546.0,2545.9,42.418]
[1748039511406,3.92772977,2546.0,2545.9,42.419]
[1748039512716,3.92772977,2546.0,2545.9,42.42]
[1748039513503,4.72752977,2546.0,2545.9,30.577]
[1748039514572,5.59304179,2546.0,2545.9,30.577]
[1748039515021,4.72752977,2546.0,2545.9,30.577]
[1748039516803,4.72006432,2545.2,2545.1,0.05]
[1748039516972,4.72006432,2545.2,2545.1,16.509]
[1748039520334,12.72676432,2545.2,2545.1,0.05]
[1748039520622,25.36265445,2545.2,2545.1,0.05]
[1748039520792,25.36265445,2545.2,2543.5,0.46563932]
[1748039520793,4.7283086,2544.2,2543.9,16.463]
[1748039520988,3.9305086,2544.2,2543.9,16.463]
[1748039521191,3.9305086,2544.2,2543.9,28.235]
[1748039521809,0.86489013,2545.2,2543.9,31.76453824]
[1748039522011,3.92865561,2545.4,2544.3,8.0]
[1748039522184,0.8277,2545.5,2544.4,43.55613382]
[1748039522389,4.75708941,2545.0,2544.4,43.55613382]
[1748039522602,3.9299987,2544.6,2544.4,43.55613382]
[1748039522800,3.93004519,2544.5,2544.4,43.55613382]
[1748039523937,3.92996771,2544.6,2544.4,43.55613382]
[1748039524295,3.92966422,2544.8,2544.5,3.48072806]
[1748039524496,3.92943338,2544.9,2544.5,3.48072806]
[1748039524832,3.9297877,2544.7,2544.5,3.48072806]
[1748039527025,3.9296776,2544.8,2544.5,3.48072806]
[1748039527331,3.9288925,2545.3,2544.8,3.92949009]
[1748039527630,3.9288925,2545.3,2544.9,28.241]
[1748039527802,3.92855145,2545.5,2545.0,8.0]
[1748039528002,0.819,2545.8,2545.1,0.4118]
[1748039528325,3.92883181,2545.3,2545.1,0.4118]
[1748039528628,3.92883181,2545.3,2545.2,11.775]
[1748039528800,3.92883181,2545.3,2545.1,0.4118]
[1748039528801,3.92904535,2545.2,2545.1,11.775]
[1748039529132,3.92904535,2545.2,2545.1,28.241]
[1748039529437,1.29369225,2545.8,2545.1,28.241]
[1748039529638,0.819,2545.8,2545.1,31.30992806]
[1748039529937,3.92873681,2545.4,2545.1,31.30992806]
[1748039530340,3.9284064,2545.6,2545.2,0.4118]
[1748039530540,3.92826356,2545.7,2545.2,4.34073052]
[1748039530730,3.9280843,2545.8,2545.3,5.12284692]
[1748039530900,3.92818552,2545.8,2545.4,14.129]
[1748039531095,3.92791316,2545.9,2545.4,17.65853824]
[1748039531336,0.819,2546.3,2545.5,8.4118]
[1748039531524,3.92743752,2546.2,2545.7,3.92812442]
[1748039531721,3.92723175,2546.4,2545.8,0.45107417]
[1748039531722,3.92719289,2546.4,2545.8,0.45107417]
[1748039531938,3.92719289,2546.4,2545.8,0.4118]
[1748039532124,3.92719289,2546.4,2545.8,12.339698]
[1748039532327,3.92719289,2546.4,2545.9,0.46189424]
[1748039532524,3.92753171,2546.2,2545.9,0.46189424]
[1748039533436,0.819,2546.8,2545.9,0.46189424]
[1748039533642,3.92713778,2546.4,2546.0,0.4118]
[1748039533942,3.92713778,2546.4,2546.1,16.464]
[1748039534128,3.92713778,2546.4,2546.2,11.773]
[1748039534838,3.92726701,2546.3,2546.2,11.773]
[1748039536229,0.819,2546.8,2546.2,12.96713382]
[1748039536452,3.92705223,2546.5,2546.2,12.96713382]
[1748039536761,3.9271405,2546.4,2546.2,12.96713382]
[1748039537457,3.92682134,2546.6,2546.2,12.96713382]
[1748039538048,3.92682134,2546.6,2546.3,0.4118]
[1748039538253,3.92682134,2546.6,2546.4,14.127]
[1748039538441,0.05,2546.9,2546.4,14.127]
[1748039538442,3.92695857,2546.5,2546.4,14.127]
[1748039538813,3.92695857,2546.5,2546.4,30.588]
[1748039543550,3.92687747,2546.6,2546.4,30.9998]
[1748039544123,3.92695857,2546.5,2546.4,30.9998]
[1748039544328,3.92695857,2546.5,2546.4,30.588]
[1748039552681,0.8075,2546.9,2546.4,30.588]
[1748039552832,0.05,2546.9,2546.5,0.45106425]
[1748039553184,3.97641295,2546.9,2546.6,13.46329952]
[1748039555057,3.97634984,2546.9,2546.6,13.46329952]
[1748039555254,0.05,2546.9,2546.6,17.41329261]
[1748039555454,0.05,2546.9,2546.8,13.62079551]
[1748039555670,0.05,2546.9,2546.8,14.03259551]
[1748039555872,0.05,2546.9,2546.8,10.10609952]
[1748039556266,0.05,2546.9,2546.8,38.26009952]
[1748039557742,0.05,2546.9,2546.8,8.4118]
[1748039557955,0.05,2546.9,2546.8,36.5638]
[1748039558187,0.05,2546.9,2546.8,24.7958]
[1748039558485,0.05,2546.9,2546.8,36.5638]
[1748039559895,0.05,2546.9,2546.8,36.93646436]
[1748039560397,0.05,2546.9,2546.8,40.86296035]
[1748039563199,0.05,2546.9,2546.8,32.86296035]
[1748039564292,0.05,2547.9,2547.4,0.4118]
[1748039564494,3.97482276,2547.9,2547.5,42.268]
[1748039564852,0.05,2547.9,2547.5,42.268]
[1748039565151,0.05,2547.9,2547.6,3.92520264]
[1748039565874,0.05,2547.9,2547.8,3.92495486]
[1748039566069,0.05,2547.9,2547.8,4.88675486]
[1748039566699,0.05,2547.9,2547.8,12.88675486]
[1748039567272,0.05,2547.9,2547.8,13.25833028]
[1748039567463,0.05,2547.9,2547.8,15.37546605]
[1748039568162,0.05,2547.9,2547.8,21.39546605]
[1748039569995,3.97329134,2548.9,2547.8,21.39546605]
[1748039569996,0.05,2548.9,2548.4,0.55]
[1748039570205,0.05,2548.9,2548.5,42.256]
[1748039570358,3.9236439,2548.7,2548.6,2.14592611]
[1748039570554,3.9236439,2548.7,2548.5,25.879]
[1748039570555,3.92372282,2548.6,2548.5,25.879]
[1748039570805,3.92372282,2548.6,2548.5,42.256]
[1748039571662,3.9236404,2548.7,2548.5,42.256]
[1748039572104,3.92349718,2548.8,2548.5,42.256]
[1748039572513,3.97337201,2548.9,2548.5,42.256]
[1748039572812,3.97334172,2548.9,2548.6,3.93407918]
[1748039574820,0.05,2548.9,2548.6,3.93407918]
[1748039574988,0.05,2548.9,2548.6,7.85778628]
[1748039575170,0.05,2548.9,2548.6,3.93407918]
[1748039575370,3.97337116,2548.9,2548.6,3.93407918]
[1748039576005,0.05,2548.9,2548.7,11.92353246]
[1748039576202,0.05,2548.9,2548.7,8.0]
[1748039576384,3.9733351,2548.9,2548.7,8.0]
[1748039577124,0.05,2548.9,2548.7,8.0]
[1748039577475,3.97332892,2548.9,2548.7,8.0]
[1748039577676,3.97332892,2548.9,2548.8,1.19340792]
[1748039579477,0.05,2548.9,2548.8,1.19340792]
[1748039579910,0.05,2548.9,2548.7,1.69077221]
[1748039581516,3.97327024,2548.9,2548.7,1.69077221]
[1748039582019,3.92356887,2548.7,2548.6,8.0]
[1748039582191,3.92356887,2548.7,2548.6,36.062]
[1748039582394,3.92356887,2548.7,2548.6,28.062]
[1748039583202,3.92356887,2548.7,2548.6,16.304]
[1748039583384,3.92356887,2548.7,2548.6,28.062]
[1748039583784,3.92372282,2548.6,2548.5,14.116]
[1748039584184,3.92372282,2548.6,2548.5,42.178]
[1748039584485,3.92372282,2548.6,2548.5,14.116]
[1748039584689,3.92372282,2548.6,2548.5,42.178]
[1748039589807,3.92372282,2548.6,2548.5,43.86877221]
[1748039593347,3.92372282,2548.6,2548.5,44.24068984]
[1748039596622,3.92372282,2548.6,2548.5,16.17868984]
[1748039596787,3.92372282,2548.6,2548.5,44.23968984]
[1748039597945,3.92372282,2548.6,2548.5,32.48168984]
[1748039598151,3.92372282,2548.6,2548.5,44.23968984]
[1748039599541,3.92360026,2548.7,2548.5,44.23968984]
[1748039599542,3.92364905,2548.7,2548.5,44.23968984]
[1748039599743,3.92364905,2548.7,2548.6,0.4118]
[1748039600954,3.92349879,2548.8,2548.6,0.4118]
[1748039601137,3.92349879,2548.8,2548.7,1.69077221]
[1748039601553,3.97334973,2548.9,2548.7,2.06268984]
[1748039602613,3.92341494,2548.8,2548.7,2.06268984]
[1748039603048,3.92341494,2548.8,2548.7,16.61391763]
[1748039603241,5.51279141,2548.8,2548.7,16.61391763]
[1748039603426,5.51279141,2548.8,2548.7,0.37191763]
[1748039603626,5.51279141,2548.8,2548.7,16.61391763]
[1748039603915,5.51279141,2548.8,2548.7,0.37191763]
[1748039604232,5.51279141,2548.8,2548.7,16.61391763]
[1748039605157,5.51279141,2548.8,2548.7,16.242]
[1748039607260,12.72311494,2548.8,2548.7,16.242]
[1748039607840,4.72311494,2548.8,2548.7,16.242]
[1748039608046,3.92341494,2548.8,2548.7,16.242]
[1748039612970,3.92341494,2548.8,2548.7,30.352]
[1748039613680,3.92341494,2548.8,2548.7,32.04277221]
[1748039614366,3.92341494,2548.8,2548.7,32.41588407]
[1748039615166,3.92341494,2548.8,2548.7,30.72511186]
[1748039615676,3.97335445,2548.9,2548.7,32.41588407]
[1748039616176,3.92341494,2548.8,2548.7,32.41588407]
[1748039617273,3.97327025,2548.9,2548.7,32.41588407]
[1748039617571,3.97327025,2548.9,2548.8,3.28276841]
[1748039618474,3.97327025,2548.9,2548.8,3.65588027]
[1748039620691,0.05,2548.9,2548.8,18.23186742]
[1748039620861,3.9215231,2550.1,2549.7,0.4118]
[1748039621067,5.88957202,2550.6,2549.8,56.26964843]
[1748039621068,3.92103463,2550.4,2549.8,56.26964843]
[1748039621269,3.92113272,2550.3,2549.8,56.26964843]
[1748039621665,3.92083564,2550.5,2549.8,56.26964843]
[1748039621889,3.92125265,2550.3,2549.8,52.34777221]
[1748039622092,3.92128182,2550.2,2549.8,52.34777221]
[1748039622388,3.92116817,2550.3,2549.8,56.26964843]
[1748039622690,3.92116817,2550.3,2549.8,52.34777221]
[1748039622991,3.92116817,2550.3,2549.8,55.63054062]
[1748039623193,3.92129245,2550.2,2549.8,56.00365248]
[1748039623960,3.92118612,2550.3,2549.8,48.00365248]
[1748039624669,1.96889759,2550.6,2549.8,48.00365248]
[1748039624874,3.9213683,2550.2,2549.8,48.00365248]
[1748039625257,3.92147069,2550.1,2549.8,36.24665248]
[1748039625490,3.92147069,2550.1,2549.8,48.00165248]
[1748039625801,3.92147069,2550.1,2549.8,47.62854062]
[1748039625966,3.97172242,2549.9,2549.8,33.62776841]
[1748039626172,3.97172242,2549.9,2549.8,45.38176841]
[1748039628866,0.05,2549.9,2549.8,45.38176841]
[1748039629080,0.05,2549.9,2549.8,45.93176841]
[1748039629781,0.05,2549.9,2549.8,57.85364463]